bitfinex/quotes_BTCUSD_20241110
["timestamp","ask_amount","ask_price","bid_price","bid_amount"]
[1731203479059,0.93142297,76773.0,76765.0,0.15661855]
[1731203479060,0.79656687,76773.0,76765.0,0.15661855]
[1731203479280,0.79656687,76773.0,76766.0,0.02437753]
[1731203479496,0.79656687,76773.0,76767.0,0.02437753]
[1731203479703,0.1348561,76768.0,76766.0,0.13224102]
[1731203479914,0.1348561,76768.0,76767.0,0.02437254]
[1731203481009,0.2133561,76768.0,76767.0,0.02437254]
[1731203482086,0.2133561,76768.0,76764.0,0.000835]
[1731203482296,0.2133561,76768.0,76765.0,0.02436417]
[1731203482514,0.2133561,76768.0,76766.0,0.02436417]
[1731203482707,0.2133561,76768.0,76767.0,0.02436417]
[1731203483343,0.2133561,76768.0,76764.0,0.000835]
[1731203483474,0.2133561,76768.0,76765.0,0.02435888]
[1731203483680,0.2133561,76768.0,76766.0,0.02435888]
[1731203483899,0.2133561,76768.0,76764.0,0.000835]
[1731203484067,0.6166205,76767.0,76765.0,0.02435889]
[1731203484268,0.6166205,76767.0,76766.0,0.02435889]
[1731203485113,0.6166205,76767.0,76764.0,0.000835]
[1731203485273,0.08659099,76765.0,76764.0,0.000835]
[1731203485476,0.17318198,76765.0,76764.0,0.000835]
[1731203485764,0.40247133,76765.0,76764.0,0.000835]
[1731203486329,0.30628198,76765.0,76764.0,0.000835]
[1731203489321,0.2331,76761.0,76760.0,0.000835]
[1731203489521,0.40628198,76761.0,76760.0,0.000835]
[1731203490846,0.45937941,76761.0,76760.0,0.000835]
[1731203492051,0.105,76760.0,76747.0,0.1957509]
[1731203493053,0.6166205,76759.0,76747.0,0.1957509]
[1731203496727,0.10759999,76758.0,76747.0,0.1957509]
[1731203497147,0.42715089,76758.0,76745.0,0.000835]
[1731203497490,0.34799098,76758.0,76745.0,0.000835]
[1731203498061,0.26139999,76758.0,76745.0,0.000835]
[1731203498261,0.25939999,76758.0,76745.0,0.000835]
[1731203498887,0.35939999,76758.0,76745.0,0.000835]
[1731203499088,0.97602049,76758.0,76745.0,0.000835]
[1731203505864,0.8684205,76758.0,76745.0,0.000835]
[1731203506103,1.04160248,76758.0,76745.0,0.000835]
[1731203507078,1.04160248,76758.0,76738.0,0.005]
[1731203507079,0.005,76753.0,76748.0,0.1957509]
[1731203507305,0.08659099,76749.0,76744.0,0.0489]
[1731203507608,0.08659099,76745.0,76744.0,0.0489]
[1731203509699,0.08659099,76745.0,76744.0,0.05499697]
[1731203509891,0.08659099,76745.0,76744.0,0.049735]
[1731203510796,0.70321149,76745.0,76744.0,0.049735]
[1731203510995,0.75629834,76745.0,76744.0,0.049735]
[1731203511203,0.66970735,76745.0,76744.0,0.26417602]
[1731203511411,0.66970735,76745.0,76744.0,0.27027378]
[1731203513496,0.75629834,76745.0,76744.0,0.27027378]
[1731203514780,0.66970735,76745.0,76744.0,0.27527378]
[1731203516576,0.66970735,76745.0,76744.0,0.28027378]
[1731203516733,0.05308685,76745.0,76744.0,0.28027378]
[1731203517078,0.08659099,76754.0,76746.0,0.0487]
[1731203517234,0.08659099,76754.0,76747.0,0.21504102]
[1731203517441,0.13972709,76754.0,76747.0,0.22114305]
[1731203517648,0.13972709,76754.0,76748.0,0.0487]
[1731203517852,0.13972709,76754.0,76749.0,0.13224102]
[1731203518054,0.13972709,76754.0,76749.0,0.13834273]
[1731203520775,0.08659099,76750.0,76749.0,0.13834273]
[1731203522594,0.08659099,76750.0,76749.0,0.14334273]
[1731203523769,0.08826099,76754.0,76749.0,0.14334273]
[1731203524083,0.08659099,76750.0,76749.0,0.14334273]
[1731203528579,0.08659099,76750.0,76749.0,0.13834273]
[1731203528986,0.08659099,76750.0,76749.0,0.00610171]
[1731203529336,0.08659099,76750.0,76744.0,0.000835]
[1731203529538,0.00167,76754.0,76745.0,0.13224102]
[1731203529759,0.08659099,76746.0,76745.0,0.13224102]
[1731203530134,0.08659099,76746.0,76745.0,0.13832903]
[1731203533899,0.17318198,76746.0,76745.0,0.00608801]
[1731203534026,0.18184108,76746.0,76745.0,0.00608801]
[1731203534230,0.18184108,76746.0,76744.0,0.000835]
[1731203534468,0.6166205,76745.0,76744.0,0.000835]
[1731203534674,0.64068021,76745.0,76744.0,0.000835]
[1731203536183,0.64568021,76745.0,76744.0,0.000835]
[1731203536583,0.6216205,76745.0,76744.0,0.000835]
[1731203536786,0.7726205,76745.0,76744.0,0.000835]
[1731203537006,0.005,76740.0,76731.0,0.1957509]
[1731203537367,0.17818198,76740.0,76731.0,0.1957509]
[1731203539054,0.1,76744.0,76732.0,0.124]
[1731203539255,0.08659099,76740.0,76732.0,0.124]
[1731203539672,0.08659099,76740.0,76734.0,0.005]
[1731203540359,0.17318198,76740.0,76734.0,0.005]
[1731203541879,0.08659099,76740.0,76734.0,0.005]
[1731203542120,0.17318198,76740.0,76734.0,0.005]
[1731203543353,0.17318198,76740.0,76709.0,0.1957509]
[1731203543354,0.01,76726.0,76709.0,0.1957509]
[1731203543562,0.01,76718.0,76710.0,0.1957509]
[1731203543787,0.08659099,76711.0,76710.0,0.1957509]
[1731203543987,0.08659099,76711.0,76708.0,0.000835]
[1731203544403,0.08659099,76711.0,76709.0,0.13224102]
[1731203545351,0.13505847,76710.0,76709.0,0.13224102]
[1731203546353,0.13505847,76710.0,76708.0,0.000835]
[1731203546756,0.005,76709.0,76708.0,0.000835]
[1731203547103,0.14505847,76709.0,76708.0,0.000835]
[1731203547295,0.86167897,76709.0,76708.0,0.000835]
[1731203547417,0.97896496,76709.0,76708.0,0.000835]
[1731203555214,0.7216205,76709.0,76708.0,0.000835]
[1731203555424,0.7166205,76709.0,76708.0,0.000835]
[1731203557065,0.86167897,76709.0,76708.0,0.000835]
[1731203557684,0.86367897,76709.0,76708.0,0.000835]
[1731203558065,0.86167897,76709.0,76708.0,0.000835]
[1731203558264,0.96950855,76709.0,76708.0,0.000835]
[1731203559198,0.83445008,76709.0,76708.0,0.000835]
[1731203559960,0.7216205,76709.0,76708.0,0.000835]
[1731203560545,0.7166205,76709.0,76708.0,0.000835]
[1731203562250,0.7166205,76709.0,76692.0,0.07789231]
[1731203562251,0.1,76708.0,76692.0,0.07789231]
[1731203562457,0.13505847,76704.0,76693.0,0.17834102]
[1731203568903,0.13505847,76704.0,76694.0,0.03887341]
[1731203569061,0.13505847,76704.0,76695.0,0.17111443]
[1731203569255,0.13505847,76704.0,76696.0,0.03887341]
[1731203569464,0.13505847,76704.0,76697.0,0.17111443]
[1731203569670,0.13505847,76704.0,76698.0,0.03887341]
[1731203569872,0.13505847,76704.0,76699.0,0.17111443]
[1731203570076,0.13505847,76704.0,76700.0,0.03888995]
[1731203570273,0.13505847,76704.0,76701.0,0.17113097]
[1731203570480,0.13505847,76704.0,76702.0,0.03888995]
[1731203570705,0.13505847,76704.0,76703.0,0.13224102]
[1731203571210,0.13505847,76704.0,76703.0,0.1711503]
[1731203571374,0.13505847,76704.0,76703.0,0.13224102]
[1731203571789,0.13505847,76704.0,76703.0,0.17117619]
[1731203572826,0.13505847,76704.0,76703.0,0.13224102]
[1731203573030,0.75167897,76704.0,76703.0,0.17121032]
[1731203576387,0.75167897,76704.0,76703.0,0.25371032]
[1731203576799,0.75167897,76704.0,76703.0,0.25915829]
[1731203577417,0.75167897,76704.0,76703.0,0.17698306]
[1731203577875,0.75167897,76704.0,76703.0,0.04474204]
[1731203578069,0.6166205,76704.0,76703.0,0.03936345]
[1731203579756,0.6166205,76704.0,76703.0,0.03936605]
[1731203581966,0.6166205,76704.0,76703.0,0.00032477]
[1731203582200,0.71944064,76704.0,76703.0,0.00032477]
[1731203582403,0.72111064,76704.0,76703.0,0.00032477]
[1731203585324,0.8078434,76704.0,76703.0,0.00032477]
[1731203586362,0.89457616,76704.0,76703.0,0.00032477]
[1731203592527,0.89457616,76704.0,76703.0,0.00032478]
[1731203593889,0.8078434,76704.0,76703.0,0.00032478]
[1731203594089,0.70502326,76704.0,76703.0,0.00032478]
[1731203594515,0.6182905,76704.0,76703.0,0.00032478]
[1731203594719,0.70502326,76704.0,76703.0,0.00032478]
[1731203599697,0.70502326,76704.0,76703.0,0.1325658]
[1731203599902,0.70502326,76704.0,76703.0,0.13795455]
[1731203601192,0.70502326,76704.0,76703.0,0.17700796]
[1731203601915,0.70502326,76704.0,76703.0,0.13795455]
[1731203602074,0.70502326,76704.0,76703.0,0.17700795]
[1731203602252,0.70502326,76704.0,76703.0,0.13795456]
[1731203602454,0.70502326,76704.0,76703.0,0.17700815]
[1731203602669,0.08840276,76704.0,76703.0,0.17700815]
[1731203603333,0.08840276,76704.0,76703.0,0.04476713]
[1731203603484,0.08840276,76704.0,76703.0,0.00032479]
[1731203607113,0.08840276,76704.0,76703.0,0.18026581]
[1731203607321,0.00167,76704.0,76703.0,0.28197121]
[1731203607490,0.00167,76704.0,76703.0,0.28197122]
[1731203607835,0.00167,76704.0,76703.0,0.28197123]
[1731203610539,0.00167,76704.0,76703.0,0.28697124]
[1731203612418,0.00167,76704.0,76703.0,0.28697125]
[1731203616561,0.00167,76704.0,76703.0,0.28697126]
[1731203617314,0.00167,76704.0,76703.0,0.32594033]
[1731203617758,0.00167,76704.0,76703.0,0.28697126]
[1731203619253,0.00167,76704.0,76703.0,0.32594229]
[1731203620765,0.00167,76704.0,76703.0,0.36491991]
[1731203621372,0.00167,76704.0,76703.0,0.35991991]
[1731203621586,0.00167,76704.0,76703.0,0.3209423]
[1731203621794,0.00167,76704.0,76703.0,0.32727916]
[1731203621997,0.00167,76704.0,76703.0,0.20127916]
[1731203622373,0.00167,76704.0,76703.0,0.20128175]
[1731203622588,0.1367019,76704.0,76703.0,0.20128175]
[1731203623288,0.1367019,76704.0,76703.0,0.20628175]
[1731203625716,0.1367019,76704.0,76703.0,0.2062878]
[1731203628421,0.1367019,76704.0,76697.0,0.005]
[1731203628603,0.1367019,76704.0,76693.0,0.000835]
[1731203628604,0.1350319,76698.0,76693.0,0.000835]
[1731203628800,0.1350319,76698.0,76695.0,0.1957509]
[1731203629053,0.1350319,76698.0,76694.0,0.005]
[1731203629467,0.1350319,76698.0,76695.0,0.13224102]
[1731203629678,0.1350319,76698.0,76696.0,0.0048922]
[1731203629896,0.1350319,76698.0,76697.0,0.13224102]
[1731203630269,0.1350319,76698.0,76697.0,0.13713297]
[1731203631630,0.1350319,76698.0,76697.0,0.00489195]
[1731203632041,0.1350319,76698.0,76693.0,0.000835]
[1731203632311,0.1350319,76698.0,76694.0,0.13224102]
[1731203632541,0.1350319,76698.0,76694.0,0.13714078]
[1731203633013,0.1350319,76698.0,76694.0,0.14214078]
[1731203633225,0.1350319,76698.0,76694.0,0.13724102]
[1731203634102,0.1350319,76698.0,76694.0,0.13224102]
[1731203634327,0.1350319,76698.0,76694.0,0.13724102]
[1731203640185,0.6166205,76702.0,76695.0,0.1235]
[1731203640403,0.6166205,76702.0,76696.0,0.13224102]
[1731203640621,0.1957509,76701.0,76696.0,0.13715547]
[1731203640861,0.1350319,76698.0,76696.0,0.13715547]
[1731203655365,0.08672205,76697.0,76696.0,0.13715547]
[1731203655586,0.6166205,76702.0,76696.0,0.13715547]
[1731203655808,0.08672205,76697.0,76696.0,0.13715547]
[1731203657881,0.08672205,76697.0,76696.0,0.15934802]
[1731203659550,0.08839205,76703.0,76698.0,0.0833]
[1731203659767,0.08839205,76703.0,76699.0,0.1371516]
[1731203660091,0.08839205,76703.0,76700.0,0.02442377]
[1731203660244,0.08839205,76703.0,76701.0,0.15666479]
[1731203660588,0.08839205,76703.0,76702.0,0.02442377]
[1731203660808,0.08839205,76703.0,76702.0,0.16157319]
[1731203661209,0.08839205,76703.0,76702.0,0.20064365]
[1731203662194,0.00167,76703.0,76702.0,0.24614365]
[1731203662392,0.00167,76703.0,76702.0,0.33444365]
[1731203662598,0.00167,76703.0,76702.0,0.27094942]
[1731203662808,0.00167,76703.0,76702.0,0.3343973]
[1731203663825,0.00167,76703.0,76702.0,0.2005973]
[1731203665166,0.00167,76703.0,76702.0,0.06835628]
[1731203665480,0.13676686,76703.0,76702.0,0.06835628]
[1731203665632,0.00167,76703.0,76702.0,0.06835628]
[1731203665839,0.00167,76703.0,76702.0,0.06344788]
[1731203666040,0.00167,76703.0,76702.0,0.0683987]
[1731203668263,0.00167,76703.0,76702.0,0.06344788]
[1731203668436,0.00167,76703.0,76702.0,0.06343889]
[1731203670123,0.00167,76703.0,76702.0,0.19567991]
[1731203670384,0.00167,76703.0,76702.0,0.20063086]
[1731203670522,0.6120175,76708.0,76702.0,0.20063086]
[1731203670737,0.6120175,76708.0,76703.0,0.19567991]
[1731203670949,0.6120175,76708.0,76704.0,0.06343889]
[1731203671152,0.6120175,76708.0,76705.0,0.19567991]
[1731203671407,0.6120175,76708.0,76706.0,0.06343889]
[1731203671609,0.6120175,76708.0,76707.0,0.17128034]
[1731203671784,0.6120175,76708.0,76707.0,0.20063023]
[1731203673886,0.13509686,76710.0,76707.0,0.20063023]
[1731203674095,0.13509686,76710.0,76708.0,0.06343889]
[1731203674303,0.13509686,76710.0,76701.0,0.1288]
[1731203674304,0.13509686,76710.0,76709.0,0.20062706]
[1731203675261,0.13509686,76710.0,76709.0,0.20062448]
[1731203676015,0.13509686,76710.0,76709.0,0.06838346]
[1731203676016,0.18904619,76710.0,76709.0,0.06838346]
[1731203676413,0.18904619,76710.0,76709.0,0.06343631]
[1731203678380,0.18904619,76710.0,76709.0,0.06343495]
[1731203678589,0.05394933,76710.0,76709.0,0.20062282]
[1731203678819,0.05394933,76710.0,76709.0,0.2211851]
[1731203679058,0.13509686,76716.0,76709.0,0.2211851]
[1731203679059,0.13509686,76716.0,76709.0,0.22140213]
[1731203679258,0.13509686,76716.0,76710.0,0.19567597]
[1731203679481,0.13509686,76716.0,76711.0,0.06838263]
[1731203679728,0.13509686,76716.0,76712.0,0.19567597]
[1731203679907,0.13509686,76716.0,76713.0,0.06343495]
[1731203680081,0.13509686,76716.0,76714.0,0.19567597]
[1731203680295,0.13509686,76716.0,76715.0,0.06838161]
[1731203681900,0.13509686,76716.0,76715.0,0.06836515]
[1731203682085,0.13509686,76716.0,76715.0,0.00494666]
[1731203682420,0.13509686,76716.0,76715.0,0.09275626]
[1731203684399,0.13509686,76716.0,76715.0,0.05372974]
[1731203684735,0.13509686,76716.0,76715.0,0.04878308]
[1731203685472,0.08669827,76716.0,76715.0,0.04878308]
[1731203686325,0.17339654,76716.0,76715.0,0.04878308]
[1731203688285,0.32407445,76716.0,76715.0,0.04878308]
[1731203688588,0.43040945,76716.0,76715.0,0.04878672]
[1731203689765,0.43040945,76716.0,76715.0,0.02439151]
[1731203691508,0.52719039,76716.0,76715.0,0.02439151]
[1731203691711,1.13920789,76716.0,76715.0,0.02439151]
[1731203692253,0.033,76715.0,76709.0,0.00021703]
[1731203692452,0.13508874,76710.0,76709.0,0.00021703]
[1731203692684,0.13508874,76710.0,76709.0,0.02461479]
[1731203695329,0.13508874,76710.0,76709.0,0.00021703]
[1731203695571,0.13508874,76710.0,76709.0,0.02461504]
[1731203697604,0.74710624,76710.0,76709.0,0.02461504]
[1731203698140,0.84891155,76710.0,76709.0,0.02461504]
[1731203698835,0.84891155,76710.0,76709.0,0.02461838]
[1731203700326,0.6120175,76710.0,76709.0,0.02461838]
[1731203700520,0.74710624,76710.0,76709.0,0.02461838]
[1731203702707,0.74710624,76710.0,76709.0,0.02461853]
[1731203703026,0.74710624,76710.0,76709.0,0.029548]
[1731203703390,0.13508874,76710.0,76709.0,0.02461853]
[1731203704624,0.13508874,76710.0,76709.0,0.00021703]
[1731203704824,0.13508874,76710.0,76709.0,0.02461778]
[1731203706831,0.27017748,76710.0,76709.0,0.02461778]
[1731203707218,0.13508874,76710.0,76709.0,0.02461778]
[1731203708074,0.13508874,76710.0,76709.0,0.02461669]
[1731203709408,0.13508874,76710.0,76709.0,0.07381669]
[1731203711417,0.17341736,76710.0,76709.0,0.07381669]
[1731203712716,0.17341736,76710.0,76709.0,0.02461669]
[1731203713580,0.17508736,76710.0,76709.0,0.02461669]
[1731203714499,0.17508736,76710.0,76709.0,0.13191703]
[1731203714697,0.17508736,76710.0,76709.0,0.15632463]
[1731203715244,0.17508736,76710.0,76709.0,0.16127284]
[1731203716219,0.17508736,76710.0,76709.0,0.02957284]
[1731203716452,0.17508736,76710.0,76709.0,0.02462463]
[1731203717867,0.17508736,76710.0,76709.0,0.00021703]
[1731203718068,0.17508736,76710.0,76709.0,0.02463381]
[1731203721501,0.17508736,76710.0,76709.0,0.02463821]
[1731203721656,0.17508736,76710.0,76709.0,0.00021703]
[1731203721890,0.17508736,76710.0,76709.0,0.0246382]
[1731203727176,0.78710486,76710.0,76709.0,0.0246382]
[1731203728385,0.78710486,76710.0,76709.0,0.02463916]
[1731203734356,0.87381354,76710.0,76709.0,0.02463916]
[1731203734553,0.87381354,76710.0,76709.0,0.00021703]
[1731203734554,0.78710486,76710.0,76709.0,0.00021703]
[1731203734877,0.78710486,76710.0,76709.0,0.02463972]
[1731203735183,0.86689885,76710.0,76709.0,0.02463972]
[1731203736797,0.78710486,76710.0,76709.0,0.02463972]
[1731203737597,0.78710486,76710.0,76708.0,0.000835]
[1731203737598,0.87881354,76710.0,76708.0,0.000835]
[1731203738026,0.028,76709.0,76708.0,0.000835]
[1731203738928,0.6400175,76709.0,76708.0,0.000835]
[1731203739674,0.73069885,76709.0,76708.0,0.000835]
[1731203741516,0.73569885,76709.0,76708.0,0.000835]
[1731203744792,0.78897458,76709.0,76708.0,0.000835]
[1731203753185,0.69829323,76709.0,76708.0,0.000835]
[1731203753805,0.69829323,76709.0,76708.0,0.02523458]
[1731203755060,0.69829323,76709.0,76708.0,0.02523463]
[1731203755474,0.69829323,76709.0,76708.0,0.000835]
[1731203757882,0.69912823,76709.0,76708.0,0.02523613]
[1731203758101,0.69912823,76709.0,76708.0,0.000835]
[1731203758532,0.67612823,76709.0,76708.0,0.000835]
[1731203758935,0.67612823,76709.0,76708.0,0.02523716]
[1731203759457,0.67112823,76709.0,76708.0,0.02523716]
[1731203760284,0.66612823,76709.0,76708.0,0.02523716]
[1731203761049,0.66612823,76709.0,76708.0,0.000835]
[1731203761260,0.66612823,76709.0,76708.0,0.02523895]
[1731203762148,0.66612823,76709.0,76708.0,0.02524097]
[1731203762649,0.75283691,76709.0,76708.0,0.02524097]
[1731203764909,0.83795847,76709.0,76708.0,0.02524097]
[1731203766424,0.75283691,76709.0,76708.0,0.02524097]
[1731203767784,0.75283691,76709.0,76708.0,0.02525642]
[1731203771740,0.75283691,76709.0,76708.0,0.02525605]
[1731203772269,0.75783691,76709.0,76708.0,0.02525605]
[1731203772489,0.76283691,76709.0,76708.0,0.02525605]
[1731203772685,0.85258847,76709.0,76708.0,0.02525605]
[1731203774571,0.76587979,76709.0,76708.0,0.02525605]
[1731203777731,0.67612823,76709.0,76708.0,0.02525864]
[1731203779262,0.66612823,76709.0,76708.0,0.02525864]
[1731203779461,0.66612823,76709.0,76708.0,0.07435864]
[1731203781099,0.66612823,76709.0,76708.0,0.049935]
[1731203781401,0.66612823,76709.0,76708.0,0.07436022]
[1731203782217,0.66612823,76709.0,76708.0,0.02526022]
[1731203784422,0.66612823,76709.0,76708.0,0.02526267]
[1731203791655,0.66612823,76709.0,76708.0,0.02526295]
[1731203800782,0.75283691,76709.0,76708.0,0.02526295]
[1731203801192,0.66612823,76709.0,76708.0,0.02526295]
[1731203801404,0.66612823,76709.0,76708.0,0.15456295]
[1731203801604,0.75283691,76709.0,76708.0,0.15456295]
[1731203801839,0.75283691,76709.0,76708.0,0.13578383]
[1731203802051,0.75283691,76709.0,76708.0,0.15456242]
[1731203802461,0.75283691,76709.0,76708.0,0.15456037]
[1731203803153,0.83695847,76709.0,76708.0,0.15456037]
[1731203804564,0.75024979,76709.0,76708.0,0.15456037]
[1731203804785,0.75283691,76709.0,76708.0,0.15455914]
[1731203804992,0.75283691,76709.0,76708.0,0.16020729]
[1731203805309,0.75283691,76709.0,76708.0,0.15455914]
[1731203806712,0.66612823,76709.0,76708.0,0.28680016]
[1731203806935,0.66612823,76709.0,76708.0,0.29244547]
[1731203807109,0.000835,76709.0,76708.0,0.29244547]
[1731203807322,0.000835,76709.0,76708.0,0.29744547]
[1731203812282,0.000835,76709.0,76708.0,0.32350547]
[1731203812535,0.000835,76709.0,76708.0,0.29744547]
[1731203812825,0.08754368,76709.0,76708.0,0.29744547]
[1731203813576,0.08754368,76709.0,76708.0,0.29244547]
[1731203813778,0.08754368,76709.0,76708.0,0.29744547]
[1731203816145,0.08754368,76709.0,76708.0,0.29244547]
[1731203816975,0.08754368,76709.0,76708.0,0.21054547]
[1731203817187,0.08754368,76709.0,76708.0,0.16314547]
[1731203817602,0.13979136,76709.0,76708.0,0.16314547]
[1731203818017,0.16260836,76709.0,76708.0,0.03090445]
[1731203819079,0.13979136,76709.0,76708.0,0.03090445]
[1731203819484,0.13979136,76709.0,76708.0,0.02525914]
[1731203819799,0.005,76703.0,76702.0,0.00167]
[1731203820022,0.005,76703.0,76691.0,0.0004]
[1731203820023,0.01,76699.0,76691.0,0.0004]
[1731203820272,0.27341736,76697.0,76691.0,0.0004]
[1731203822879,0.05419383,76697.0,76691.0,0.0004]
[1731203823117,0.08670868,76697.0,76691.0,0.0004]
[1731203823764,0.17341736,76697.0,76691.0,0.0004]
[1731203824624,0.08670868,76697.0,76691.0,0.0004]
[1731203824862,0.69872618,76697.0,76691.0,0.0004]
[1731203825086,0.78543486,76697.0,76691.0,0.0004]
[1731203826564,0.69872618,76697.0,76691.0,0.0004]
[1731203826775,0.78543486,76697.0,76691.0,0.0004]
[1731203827783,0.69872618,76697.0,76691.0,0.0004]
[1731203828834,0.78543486,76697.0,76691.0,0.0004]
[1731203829041,0.69872618,76697.0,76691.0,0.0004]
[1731203829449,0.78543486,76697.0,76691.0,0.0004]
[1731203830050,0.69872618,76697.0,76691.0,0.0004]
[1731203830531,0.6120175,76697.0,76693.0,0.005835]
[1731203830734,0.00167,76702.0,76696.0,0.25667602]
[1731203830735,0.08670868,76700.0,76696.0,0.25667602]
[1731203830958,0.00167,76702.0,76697.0,0.14247538]
[1731203831192,0.00167,76702.0,76701.0,0.0518]
[1731203831327,0.00167,76702.0,76701.0,0.18404102]
[1731203831721,0.00167,76702.0,76701.0,0.18927229]
[1731203833436,0.00167,76702.0,76701.0,0.27037953]
[1731203833674,0.00167,76702.0,76701.0,0.26777229]
[1731203833882,0.00167,76702.0,76701.0,0.27037935]
[1731203835480,0.00167,76702.0,76701.0,0.27737935]
[1731203835698,0.00167,76702.0,76701.0,0.27537935]
[1731203836076,0.00167,76702.0,76701.0,0.27277229]
[1731203837208,0.00167,76702.0,76701.0,0.26777229]
[1731203837420,0.17508736,76702.0,76701.0,0.21597229]
[1731203837622,0.08837868,76702.0,76701.0,0.13747229]
[1731203838086,0.08837868,76702.0,76701.0,0.01023127]
[1731203838398,0.08837868,76702.0,76696.0,0.000835]
[1731203838591,0.08837868,76702.0,76696.0,0.13307602]
[1731203838592,0.08670868,76697.0,76696.0,0.13307602]
[1731203839029,0.08670868,76697.0,76696.0,0.13958221]
[1731203839607,0.13509853,76697.0,76696.0,0.13958221]
[1731203842029,0.13509853,76697.0,76696.0,0.14458221]
[1731203842235,0.13509853,76697.0,76696.0,0.18358241]
[1731203842436,0.13509853,76697.0,76696.0,0.16891719]
[1731203846164,0.13509853,76697.0,76696.0,0.16391719]
[1731203847443,0.13509853,76697.0,76696.0,0.16891719]
[1731203847674,0.13509853,76697.0,76696.0,0.16391719]
[1731203848904,0.13509853,76697.0,76696.0,0.16891719]
[1731203849355,0.13509853,76697.0,76696.0,0.16391719]
[1731203849559,0.13509853,76697.0,76696.0,0.03167617]
[1731203850037,0.13509853,76697.0,76696.0,0.02516998]
[1731203850973,0.13509853,76697.0,76696.0,0.03016998]
[1731203852716,0.13509853,76697.0,76696.0,0.02516998]
[1731203853847,0.15416838,76697.0,76696.0,0.02516998]
[1731203854683,0.13509853,76697.0,76696.0,0.02516998]
[1731203860720,0.6120175,76700.0,76696.0,0.02516998]
[1731203860927,0.6120175,76700.0,76697.0,0.02433498]
[1731203861173,0.6120175,76700.0,76698.0,0.02433498]
[1731203861370,0.6120175,76700.0,76699.0,0.02433498]
[1731203862604,0.69873376,76700.0,76699.0,0.02433498]
[1731203863461,0.08671626,76700.0,76699.0,0.02433498]
[1731203864319,0.08671626,76700.0,76698.0,0.0796]
[1731203864541,0.08671626,76700.0,76699.0,0.02438226]
[1731203865596,0.08671626,76700.0,76698.0,0.0796]
[1731203865804,0.08671626,76700.0,76699.0,0.02438971]
[1731203866463,0.28246716,76700.0,76699.0,0.02438971]
[1731203866673,0.28246716,76700.0,76699.0,0.02941464]
[1731203866674,0.08671626,76700.0,76699.0,0.02941464]
[1731203866884,0.08671626,76700.0,76699.0,0.02438971]
[1731203867546,0.13510026,76700.0,76699.0,0.02438971]
[1731203868637,0.25520197,76700.0,76699.0,0.02438971]
[1731203869063,0.24159206,76700.0,76699.0,0.02438971]
[1731203869523,0.85360956,76700.0,76699.0,0.02438971]
[1731203870968,0.85360956,76700.0,76699.0,0.0244222]
[1731203871642,0.85360956,76700.0,76699.0,0.06349434]
[1731203872564,0.85360956,76700.0,76699.0,0.0244222]
[1731203874221,0.85360956,76700.0,76696.0,0.000835]
[1731203874442,0.74711776,76700.0,76697.0,0.02441663]
[1731203874645,0.74711776,76700.0,76698.0,0.02441663]
[1731203874849,0.74711776,76700.0,76699.0,0.02441663]
[1731203877752,0.005,76698.0,76696.0,0.000835]
[1731203877962,0.08898177,76697.0,76696.0,0.000835]
[1731203878163,0.08898177,76697.0,76696.0,0.02524812]
[1731203880407,0.74711776,76700.0,76696.0,0.02524812]
[1731203880698,0.74711776,76700.0,76697.0,0.02441312]
[1731203880900,0.74711776,76700.0,76698.0,0.02441168]
[1731203881103,0.13510026,76700.0,76699.0,0.02441168]
[1731203881345,0.13510026,76700.0,76699.0,0.02945308]
[1731203881502,0.13510026,76700.0,76699.0,0.06851067]
[1731203882487,0.13510026,76700.0,76699.0,0.02945308]
[1731203883525,0.13510026,76700.0,76699.0,0.02945129]
[1731203883965,0.15517028,76700.0,76699.0,0.02945129]
[1731203884688,0.15517028,76700.0,76699.0,0.02440989]
[1731203886907,0.15517028,76700.0,76696.0,0.000835]
[1731203887139,0.15517028,76700.0,76699.0,0.02440836]
[1731203887283,0.19355118,76700.0,76699.0,0.02440836]
[1731203888492,0.20716162,76700.0,76699.0,0.02440836]
[1731203889095,0.29476162,76700.0,76699.0,0.02440836]
[1731203890140,0.29476162,76700.0,76693.0,0.000835]
[1731203890141,0.005,76694.0,76693.0,0.000835]
[1731203890356,0.17848116,76694.0,76693.0,0.000835]
[1731203891133,0.86038116,76694.0,76693.0,0.000835]
[1731203892952,0.77364058,76694.0,76693.0,0.000835]
[1731203896625,0.6869,76694.0,76693.0,0.000835]
[1731203896830,0.78721673,76694.0,76693.0,0.000835]
[1731203899313,0.84147805,76694.0,76693.0,0.000835]
[1731203902005,0.84147805,76694.0,76693.0,0.02524579]
[1731203902458,0.84147805,76694.0,76693.0,0.02524559]
[1731203907191,0.84147805,76694.0,76693.0,0.02524612]
[1731203908339,0.005,76688.0,76681.0,0.0932492]
[1731203908541,0.17848116,76688.0,76681.0,0.0115492]
[1731203912948,0.17348116,76688.0,76681.0,0.0115492]
[1731203913150,0.08674058,76688.0,76687.0,0.049274]
[1731203913560,0.01361172,76693.0,76687.0,0.049274]
[1731203913778,0.08674058,76688.0,76687.0,0.049274]
[1731203913997,0.6819,76692.0,76687.0,0.18151502]
[1731203914215,0.76864058,76692.0,76689.0,0.0478]
[1731203914441,0.6819,76692.0,76690.0,0.0791]
[1731203914645,0.08674058,76691.0,76690.0,0.08408329]
[1731203914851,0.08674058,76691.0,76690.0,0.12313193]
[1731203917347,0.08674058,76691.0,76690.0,0.08408329]
[1731203917517,0.08674058,76691.0,76690.0,0.12313634]
[1731203920515,0.08674058,76691.0,76690.0,0.1475475]
[1731203920719,0.08674058,76691.0,76690.0,0.14755187]
[1731203924060,0.08674058,76691.0,76690.0,0.08408329]
[1731203924241,0.08674058,76691.0,76690.0,0.14755152]
[1731203929746,0.00167,76692.0,76691.0,0.005]
[1731203929931,0.00167,76692.0,76691.0,0.32760925]
[1731203929932,0.1974209,76692.0,76691.0,0.32760925]
[1731203930140,0.00167,76692.0,76691.0,0.33258107]
[1731203936546,0.00167,76692.0,76691.0,0.3325185]
[1731203943056,0.00167,76692.0,76691.0,0.33252079]
[1731203943488,0.00167,76692.0,76691.0,0.26911284]
[1731203943705,0.00167,76692.0,76691.0,0.3325283]
[1731203946255,0.00167,76692.0,76691.0,0.3395283]
[1731203946650,0.00167,76692.0,76691.0,0.3495283]
[1731203946862,0.00167,76696.0,76695.0,0.1374]
[1731203947145,0.00167,76696.0,76695.0,0.33566375]
[1731203947302,0.00167,76696.0,76695.0,0.33800913]
[1731203948221,0.00167,76696.0,76695.0,0.34800913]
[1731203948626,0.00167,76696.0,76695.0,0.45000913]
[1731203950202,0.00167,76696.0,76695.0,0.43800913]
[1731203950408,0.00167,76696.0,76695.0,0.44300913]
[1731203950560,0.00167,76696.0,76695.0,0.44800913]
[1731203951900,0.00167,76696.0,76695.0,0.49670136]
[1731203953126,0.00167,76696.0,76695.0,0.49657526]
[1731203959604,0.00167,76696.0,76695.0,0.48657526]